fUST/lending_fUST_20251110
["ID","MTS","AMOUNT","RATE_DAILY","PERIOD"]
[393539907,1762781438089,-173.88353452,0.00021972,2]
[393539908,1762781438099,-890.54548562,0.00021972,2]
[393539909,1762781438108,-890.54548562,0.00021972,2]
[393539910,1762781438118,-784.60479424,0.00021972,2]
[393539911,1762781438130,-105.94069138,0.00021972,2]
[393539912,1762781438138,-890.54548562,0.00021972,2]
[393539913,1762781438147,-890.54548562,0.00021972,2]
[393539914,1762781438157,-890.54548562,0.00021972,2]
[393539915,1762781438167,-890.54548562,0.00021972,2]
[393539916,1762781438176,-890.54548562,0.00021972,2]
[393539917,1762781438186,-890.54548562,0.00021972,2]
[393539918,1762781438196,-890.54548562,0.00021972,2]
[393539919,1762781438206,-890.54548562,0.00021972,2]
[393539920,1762781438215,-890.54548562,0.00021972,2]
[393539921,1762781438225,-890.54548562,0.00021972,2]
[393539922,1762781438235,-890.54548562,0.00021972,2]
[393539923,1762781438244,-890.54548562,0.00021972,2]
[393539924,1762781438254,-890.54548562,0.00021972,2]
[393539925,1762781438263,-890.54548562,0.00021972,2]
[393539926,1762781438273,-890.54548562,0.00021972,2]
[393539927,1762781438282,-890.54548562,0.00021972,2]
[393539928,1762781438291,-890.54548562,0.00021972,2]
[393539929,1762781438301,-890.54548562,0.00021972,2]
[393539930,1762781438311,-890.54548562,0.00021972,2]
[393539931,1762781438320,-890.54548562,0.00021972,2]
[393539932,1762781438329,-890.54548562,0.00021972,2]
[393539933,1762781438345,-890.54548562,0.00021972,2]
[393539934,1762781438355,-890.54548562,0.00021972,2]
[393539935,1762781438364,-890.54548562,0.00021972,2]
[393539936,1762781438374,-890.54548562,0.00021972,2]
[393539937,1762781438384,-890.54548562,0.00021972,2]
[393539938,1762781438393,-890.54548562,0.00021972,2]
[393539939,1762781438404,-890.54548562,0.00021972,2]
[393539940,1762781438414,-890.54548562,0.00021972,2]
[393539941,1762781438424,-890.54548562,0.00021972,2]
[393539942,1762781438434,-890.54548562,0.00021972,2]
[393539943,1762781438443,-890.54548562,0.00021972,2]
[393539944,1762781438454,-890.54548562,0.00021972,2]
[393539945,1762781438467,-890.54548562,0.00021972,2]
[393539946,1762781438477,-890.54548562,0.00021972,2]
[393539947,1762781438487,-890.54548562,0.00021972,2]
[393539948,1762781438497,-890.54548562,0.00021972,2]
[393539949,1762781438507,-890.54548562,0.00021972,2]
[393539950,1762781438516,-890.54548562,0.00021972,2]
[393539951,1762781438525,-890.54548562,0.00021972,2]
[393539952,1762781438535,-890.54548562,0.00021972,2]
[393539953,1762781438546,-890.54548562,0.00021972,2]
[393539954,1762781438555,-50000.0,0.00021973,2]
[393539955,1762781438565,-2966.24504578,0.00021973,2]
[393539956,1762781438574,-300.0,0.00021999,2]
[393539957,1762781438584,-3809.0,0.00022,2]
[393539958,1762781438593,-110422.34386691,0.00022013,2]
[393539959,1762781438605,-2061.95117238,0.00022013,2]
[393539985,1762781440472,-322.36470084,0.00022013,2]
[393540075,1762781446065,-189.97,0.00022003,10]
[393540076,1762781446074,-7682.22488894,0.00022013,2]
[393540077,1762781446086,-1348.07640727,0.00022013,2]
[393540078,1762781480275,155.68049468,0.00037171,60]
[393540079,1762781481936,200.0,0.00037171,30]
[393540080,1762781622458,100000.0,0.00037119,30]
[393540081,1762781633990,100000.0,0.00037119,30]
[393540082,1762781666374,100000.0,0.00037119,30]
[393540083,1762781719568,100000.0,0.00037119,30]
[393540084,1762781742802,99998.0,0.00037119,30]
[393540085,1762782348492,500.0,0.00037119,60]
[393540086,1762782348740,200.928,0.00037119,60]
[393540096,1762782632009,-212.54639833,0.00019076,2]
[393540097,1762782632019,-47.05779543,0.00020069,2]
[393540098,1762782632030,-386.67396692,0.00020069,2]
[393540099,1762782632039,-285.19494537,0.00020069,2]
[393540100,1762782632048,-325.93708042,0.00020069,2]
[393540101,1762782632058,-451.19400729,0.00020069,2]
[393540102,1762782632069,-58.08268087,0.00020069,2]
[393540104,1762782632078,-732.62507251,0.00020069,2]
[393540105,1762782632087,-2831.6270513,0.00020965,2]
[393540106,1762782632097,-200.35546101,0.00021045,2]
[393540108,1762782632106,-500.0,0.00021673,2]
[393540110,1762782632115,-168.0,0.00021675,2]
[393540112,1762782632124,-300.0,0.00021689,2]
[393540113,1762782632133,-3389.09849883,0.0002169,2]
[393540141,1762782637808,-362.26,0.00021688,10]
[393540143,1762782637817,-500.0,0.00021689,2]
[393540145,1762782637826,-611.94763514,0.00021689,2]
[393540146,1762782637839,-316.27336199,0.00021689,2]
[393540150,1762782637867,-183.72663801,0.00021689,2]
[393540152,1762782637876,-611.94763514,0.00021689,2]
[393540154,1762782637886,-187.97140135,0.00021689,2]
[393540156,1762782637897,-423.97623379,0.00021689,2]
[393540158,1762782637907,-561.07164621,0.00021689,2]
[393540160,1762782637920,-50.87598893,0.00021689,2]
[393540162,1762782637929,-575.49318349,0.00021689,2]
[393540164,1762782637948,-36.45445165,0.00021689,2]
[393540166,1762782637957,-611.94763514,0.00021689,2]
[393540168,1762782637967,-611.94763514,0.00021689,2]
[393540170,1762782637976,-611.94763514,0.00021689,2]
[393540172,1762782637985,-611.94763514,0.00021689,2]
[393540174,1762782637994,-611.94763514,0.00021689,2]
[393540176,1762782638003,-611.94763514,0.00021689,2]
[393540177,1762782638012,-611.94763514,0.00021689,2]
[393540179,1762782638021,-611.94763514,0.00021689,2]
[393540181,1762782638030,-611.94763514,0.00021689,2]
[393540183,1762782638040,-611.94763514,0.00021689,2]
[393540185,1762782638049,-611.94763514,0.00021689,2]
[393540187,1762782638058,-611.94763514,0.00021689,2]
[393540188,1762782638068,-611.94763514,0.00021689,2]
[393540190,1762782638077,-611.94763514,0.00021689,2]
[393540192,1762782638087,-611.94763514,0.00021689,2]
[393540194,1762782638096,-611.94763514,0.00021689,2]
[393540196,1762782638105,-611.94763514,0.00021689,2]
[393540198,1762782638115,-611.94763514,0.00021689,2]
[393540200,1762782638124,-611.94763514,0.00021689,2]
[393540202,1762782638133,-611.94763514,0.00021689,2]
[393540203,1762782638143,-219.08983032,0.00021689,2]
[393540205,1762782638152,-611.94763514,0.00021689,2]
[393540207,1762782638161,-611.94763514,0.00021689,2]
[393540209,1762782638171,-611.94763514,0.00021689,2]
[393540211,1762782638181,-611.94763514,0.00021689,2]
[393540213,1762782638190,-611.94763514,0.00021689,2]
[393540215,1762782638199,-611.94763514,0.00021689,2]
[393540216,1762782638209,-611.94763514,0.00021689,2]
[393540218,1762782638218,-611.94763514,0.00021689,2]
[393540220,1762782638228,-611.94763514,0.00021689,2]
[393540222,1762782638238,-393.79538151,0.00021689,2]
[393540252,1762782640036,-218.15225363,0.00021689,2]
[393540253,1762782640046,-611.94763514,0.00021689,2]
[393540254,1762782640056,-611.94763514,0.00021689,2]
[393540255,1762782640066,-611.94763514,0.00021689,2]
[393540256,1762782640076,-611.94763514,0.00021689,2]
[393540257,1762782640085,-611.94763514,0.00021689,2]
[393540258,1762782640095,-611.94763514,0.00021689,2]
[393540259,1762782640104,-611.94763514,0.00021689,2]
[393540260,1762782640114,-611.94763514,0.00021689,2]
[393540261,1762782640123,-611.94763514,0.00021689,2]
[393540262,1762782640132,-611.94763514,0.00021689,2]
[393540263,1762782640142,-611.94763514,0.00021689,2]
[393540264,1762782640152,-611.94763514,0.00021689,2]
[393540265,1762782640161,-611.94763514,0.00021689,2]
[393540266,1762782640171,-611.94763514,0.00021689,2]
[393540267,1762782640180,-611.94763514,0.00021689,2]
[393540268,1762782640190,-25689.28918126,0.0002169,2]
[393540269,1762782640202,-645.88935581,0.0002169,2]
[393540274,1762782643221,-3801.87220752,0.0002169,2]
[393540275,1762782643232,-2034.34875216,0.0002169,2]
[393540284,1762782646500,-14439.50200442,0.0002169,2]
[393540285,1762782646509,-168.0,0.00021692,2]
[393540286,1762782646519,-164.0312576,0.000217,2]
[393540287,1762782646530,-164.0312576,0.000217,2]
[393540288,1762782646541,-164.0312576,0.000217,2]
[393540289,1762782646551,-1544.0,0.000217,2]
[393540290,1762782646562,-168.0,0.00021788,2]
[393540291,1762782646680,-327.9915066,0.000218,2]
[393540292,1762782646691,-164.0312576,0.000218,2]
[393540293,1762782646702,-164.0312576,0.000218,2]
[393540294,1762782646711,-164.0312576,0.000218,2]
[393540295,1762782646722,-168.0,0.0002183,2]
[393540296,1762782646731,-1000.0,0.00021877,2]
[393540297,1762782646740,-1000.0,0.00021877,2]
[393540298,1762782646749,-1000.0,0.00021877,2]
[393540299,1762782646759,-1000.0,0.00021877,2]
[393540300,1762782646768,-1000.0,0.00021877,2]
[393540301,1762782646777,-151.0,0.00021877,2]
[393540302,1762782646786,-1000.0,0.00021877,2]
[393540303,1762782646795,-151.0,0.00021877,2]
[393540304,1762782646804,-1076.91654008,0.00021877,2]
[393540305,1762782646814,-162.53014199,0.00021877,2]
[393540306,1762782646823,-168.0,0.00021888,2]
[393540307,1762782646833,-168.0,0.0002189,2]
[393540308,1762782646847,-310.4590606,0.000219,2]
[393540309,1762782646856,-164.0312576,0.000219,2]
[393540310,1762782646865,-323.1546027,0.000219,2]
[393540311,1762782646875,-2389.85481413,0.00021921,2]
[393540312,1762782646885,-168.0,0.00021925,2]
[393540313,1762782646894,-154.4359211,0.00021953,2]
[393540314,1762782646903,-500.0,0.00021966,2]
[393540315,1762782646915,-500.0,0.00021966,2]
[393540316,1762782646924,-500.0,0.00021966,2]
[393540317,1762782646933,-500.0,0.00021966,2]
[393540318,1762782646946,-500.0,0.00021966,2]
[393540319,1762782646956,-151.0,0.00021966,2]
[393540320,1762782646966,-500.0,0.00021966,2]
[393540321,1762782646976,-151.0,0.00021966,2]
[393540322,1762782646986,-151.0,0.00021966,2]
[393540323,1762782646995,-500.0,0.00021966,2]
[393540324,1762782647004,-151.0,0.00021967,2]
[393540325,1762782647014,-151.45345064,0.00021967,2]
[393540326,1762782647023,-151.54740467,0.00021967,2]
[393540327,1762782647034,-500.0,0.00021967,2]
[393540328,1762782647043,-151.65747437,0.00021967,2]
[393540329,1762782647053,-151.50518501,0.00021967,2]
[393540330,1762782647063,-152.24937403,0.00021967,2]
[393540331,1762782647072,-151.0,0.00021967,2]
[393540332,1762782647082,-500.0,0.00021967,2]
[393540333,1762782647091,-152.45805832,0.00021967,2]
[393540334,1762782647101,-152.44990915,0.00021967,2]
[393540335,1762782647110,-423.8810412,0.00021967,2]
[393540336,1762782647119,-7259.99999903,0.00021968,2]
[393540337,1762782647129,-500.0,0.00021973,2]
[393540338,1762782647139,-500.0,0.00021973,2]
[393540339,1762782647148,-500.16307664,0.00021973,2]
[393540340,1762782647158,-504.81781913,0.00021973,2]
[393540341,1762782647167,-509.04784384,0.00021973,2]
[393540342,1762782647177,-500.0,0.00021973,2]
[393540343,1762782647187,-500.0,0.00021973,2]
[393540344,1762782647197,-617.34,0.0002198,3]
[393540345,1762782647206,-308.67,0.0002198,3]
[393540346,1762782647215,-463.03,0.0002198,3]
[393540347,1762782647226,-3387.7152962,0.00021996,2]
[393540348,1762782647236,-878.738147,0.00021996,2]
[393540349,1762782647245,-654.39079278,0.00022,5]
[393540350,1762782647255,-164.0684288,0.00022,2]
[393540351,1762782647264,-164.0312576,0.00022,2]
[393540352,1762782647275,-327.9915066,0.00022,2]
[393540353,1762782647284,-2469.34,0.00022003,3]
[393540354,1762782647293,-1234.67,0.00022003,3]
[393540355,1762782647303,-154.33,0.00022003,3]
[393540356,1762782647312,-301.88,0.00022003,10]
[393540357,1762782647322,-4857.54481862,0.00022013,2]
[393540358,1762782647339,-12295.3750951,0.00022013,2]
[393540359,1762782691055,1866.0,0.0003287,120]
[393540363,1762783037947,419.252382,0.00013699,2]
[393540364,1762783213635,250.0,0.00037133,30]
[393540365,1762783214284,250.0,0.00037133,30]
[393540366,1762783214942,250.0,0.00037133,30]
[393540367,1762783215600,250.0,0.00037133,30]
[393540368,1762783216216,250.0,0.00037133,20]
[393540369,1762783216941,250.0,0.00037133,20]
[393540370,1762783217574,250.0,0.00037133,20]
[393540371,1762783218201,250.0,0.00037133,20]
[393540373,1762783370827,301.63,0.00037133,20]
[393540374,1762783509396,250.0,0.00037133,30]
[393540375,1762783510119,250.0,0.00037133,30]
[393540376,1762783510692,250.0,0.00037133,30]
[393540377,1762783511319,250.0,0.00037133,30]
[393540378,1762783511997,250.0,0.00037133,30]
[393540379,1762783512643,250.0,0.00037133,30]
[393540380,1762783513284,250.0,0.00037133,30]
[393540381,1762783513990,250.0,0.00037133,30]
[393540383,1762783588629,500.0,0.00032844,120]
[393540384,1762783590220,500.0,0.00032827,120]
[393540385,1762783591149,500.0,0.00032811,120]
[393540386,1762783591763,500.0,0.00032844,120]
[393540387,1762783592667,500.0,0.00032827,120]
[393540388,1762783593497,500.0,0.00032811,120]
[393540389,1762783665000,800.0,0.00032844,120]
[393540390,1762783665757,800.0,0.00032827,120]
[393540391,1762783666512,584.68416659,0.00032811,120]
[393540424,1762783832129,-238.323712,0.00019966,2]
[393540426,1762783832139,-209.70694146,0.00020187,2]
[393540428,1762783832149,-137.38243313,0.00020187,2]
[393540430,1762783832161,-281.86994887,0.00020187,2]
[393540432,1762783832171,-2595.46441504,0.00020886,2]
[393540434,1762783832180,-300.0,0.00020972,2]
[393540436,1762783832190,-1200.0,0.00020972,2]
[393540439,1762783832204,-512.82140284,0.00020973,2]
[393540441,1762783832214,-506.113933,0.00020973,2]
[393540443,1762783832224,-222.00075868,0.00020973,2]
[393540444,1762783832234,-13507.2821172,0.00020973,2]
[393540447,1762783832249,-625.77186581,0.00020973,2]
[393540449,1762783832261,-386.41118711,0.00020973,2]
[393540451,1762783832272,-504.60684698,0.00020973,2]
[393540453,1762783832282,-500.0,0.00020973,2]
[393540455,1762783832291,-473.45832703,0.00020973,2]
[393540457,1762783832303,-26.54167297,0.00020973,2]
[393540459,1762783832312,-209.59424987,0.00020973,2]
[393540461,1762783832321,-500.0,0.00020973,2]
[393540463,1762783832330,-500.0,0.00020973,2]
[393540466,1762783832339,-162.29908116,0.0002098,10]
[393540524,1762783838106,-711.23091884,0.0002098,10]
[393540525,1762783838116,-500.0,0.00020984,2]
[393540527,1762783838125,-125.58105007,0.00020984,2]
[393540529,1762783838139,-374.41894993,0.00020984,2]
[393540531,1762783838149,-10.77270322,0.00020984,2]
[393540575,1762783840282,-489.22729678,0.00020984,2]
[393540576,1762783840292,-182.55207157,0.00020984,2]
[393540577,1762783840304,-317.44792843,0.00020984,2]
[393540578,1762783840313,-500.0,0.00020984,2]
[393540579,1762783840322,-500.0,0.00020984,2]
[393540580,1762783840335,-500.0,0.00020984,2]
[393540581,1762783840345,-500.0,0.00020984,2]
[393540582,1762783840354,-500.0,0.00020984,2]
[393540583,1762783840364,-500.0,0.00020984,2]
[393540584,1762783840373,-500.0,0.00020984,2]
[393540585,1762783840383,-500.0,0.00020984,2]
[393540587,1762783840392,-500.0,0.00020984,2]
[393540589,1762783840401,-500.0,0.00020984,2]
[393540591,1762783840410,-301.3891885,0.00020984,2]
[393540607,1762783845585,-198.6108115,0.00020984,2]
[393540609,1762783845594,-500.0,0.00020984,2]
[393540611,1762783845603,-500.0,0.00020984,2]
[393540612,1762783845612,-500.0,0.00020984,2]
[393540613,1762783845621,-500.0,0.00020984,2]
[393540614,1762783845630,-500.0,0.00020984,2]
[393540615,1762783845639,-500.0,0.00020984,2]
[393540616,1762783845648,-500.0,0.00020984,2]
[393540617,1762783845657,-500.0,0.00020984,2]
[393540618,1762783845666,-500.0,0.00020984,2]
[393540619,1762783845675,-500.0,0.00020984,2]
[393540620,1762783845684,-500.0,0.00020984,2]
[393540621,1762783845693,-500.0,0.00020984,2]
[393540622,1762783845702,-500.0,0.00020984,2]
[393540624,1762783845711,-500.0,0.00020984,2]
[393540627,1762783845720,-500.0,0.00020984,2]
[393540630,1762783845728,-500.0,0.00020984,2]
[393540633,1762783845738,-500.0,0.00020984,2]
[393540636,1762783845747,-500.0,0.00020984,2]
[393540638,1762783845756,-500.0,0.00020984,2]
[393540640,1762783845765,-500.0,0.00020984,2]
[393540641,1762783845774,-500.0,0.00020984,2]
[393540642,1762783845783,-500.0,0.00020984,2]
[393540643,1762783845792,-500.0,0.00020984,2]
[393540644,1762783845801,-500.0,0.00020984,2]
[393540645,1762783845810,-500.0,0.00020984,2]
[393540646,1762783845819,-500.0,0.00020984,2]
[393540647,1762783845828,-500.0,0.00020984,2]
[393540648,1762783845837,-500.0,0.00020984,2]
[393540649,1762783845846,-500.0,0.00020984,2]
[393540650,1762783845856,-500.0,0.00020984,2]
[393540651,1762783845865,-500.0,0.00020984,2]
[393540652,1762783845874,-500.0,0.00020984,2]
[393540653,1762783845884,-500.0,0.00020984,2]
[393540654,1762783845893,-500.0,0.00020984,2]
[393540655,1762783845902,-500.0,0.00020984,2]
[393540656,1762783845911,-500.0,0.00020984,2]
[393540657,1762783845920,-533.87922281,0.00020984,2]
[393540658,1762783845929,-500.0,0.00020984,2]
[393540659,1762783845938,-500.0,0.00020984,2]
[393540660,1762783845948,-186.06528769,0.00020989,2]
[393540661,1762783845957,-10949.41446292,0.0002099,2]
[393540662,1762783845968,-5386.71503059,0.0002099,2]
[393540669,1762783846876,-683.71006016,0.0002099,2]
[393540670,1762783846889,-4499.052191,0.0002099,2]
[393540676,1762783954742,500.0,0.00037134,60]
[393540677,1762783955007,564.50482332,0.00037134,60]
[393540678,1762783958241,500.0,0.00037134,60]
[393540679,1762783958425,500.0,0.00037134,60]
[393540680,1762783958473,500.0,0.00037134,60]
[393540681,1762783958672,500.0,0.00037134,60]
[393540682,1762783958711,500.0,0.00037134,60]
[393540683,1762783958950,500.0,0.00037134,60]
[393540684,1762783959110,500.0,0.00037134,60]
[393540685,1762783959188,304.91382676,0.00037134,60]
[393540686,1762783959341,599.4112466,0.00037134,60]
[393540687,1762783962946,500.0,0.00037134,60]
[393540688,1762783963029,500.0,0.00037134,60]
[393540689,1762783963274,500.0,0.00037134,60]
[393540690,1762783963519,637.29099941,0.00037134,60]
[393540691,1762783965385,500.0,0.00037134,60]
[393540692,1762783965612,500.0,0.00037134,60]
[393540693,1762783965901,500.0,0.00037134,60]
[393540694,1762783966132,228.74161434,0.00037134,60]
[393540695,1762783966968,500.0,0.00037134,60]
[393540696,1762783967200,500.0,0.00037134,60]
[393540697,1762783967430,606.051386,0.00037134,60]
[393540698,1762783968288,500.0,0.00037134,60]
[393540699,1762783968563,500.0,0.00037134,60]
[393540700,1762783968833,541.06883013,0.00037134,60]
[393540701,1762783973803,500.0,0.00037134,60]
[393540702,1762783973979,500.0,0.00037134,60]
[393540703,1762783974229,500.0,0.00037134,60]
[393540704,1762783974467,500.0,0.00037134,60]
[393540705,1762783974746,241.0788655,0.00037134,60]
[393540706,1762783978365,500.0,0.00037134,60]
[393540707,1762783978663,500.0,0.00037134,60]
[393540708,1762783978742,500.0,0.00037134,60]
[393540709,1762783978923,500.0,0.00037134,60]
[393540710,1762783978976,500.0,0.00037134,60]
[393540711,1762783979215,500.0,0.00037134,60]
[393540712,1762783979249,500.0,0.00037134,60]
[393540713,1762783979460,500.0,0.00037134,60]
[393540714,1762783979491,507.48973381,0.00037134,60]
[393540715,1762783981367,3075.0,0.00018651,2]
[393540716,1762783991620,500.0,0.00037134,60]
[393540717,1762783991874,500.0,0.00037134,60]
[393540718,1762783992113,500.0,0.00037134,60]
[393540719,1762783992649,636.40020207,0.00037134,60]
[393540720,1762784013594,236.0,0.0001962,3]
[393540721,1762784017776,552.70659247,0.00037131,60]
[393540722,1762784023742,500.0,0.00037131,60]
[393540723,1762784023980,535.2956739,0.00037131,60]
[393540724,1762784025833,500.0,0.00037131,60]
[393540725,1762784052426,821.36,0.00037131,30]
[393540726,1762784052659,821.36,0.00037131,30]
[393540727,1762784052909,821.36,0.00037131,30]
[393540728,1762784053148,821.36,0.00037131,30]
[393540729,1762784053370,821.36,0.00037131,30]
[393540730,1762784053624,821.36,0.00037131,30]
[393540731,1762784053853,821.36,0.00037131,30]
[393540732,1762784054076,821.36,0.00037131,30]
[393540733,1762784054323,821.36,0.00037131,30]
[393540734,1762784054559,821.36,0.00037131,30]
[393540735,1762784054811,821.36,0.00037131,30]
[393540736,1762784055047,821.36,0.00037131,30]
[393540737,1762784055293,821.36,0.00037131,30]
[393540738,1762784055531,821.36,0.00037131,30]
[393540739,1762784055792,821.36,0.00037131,30]
[393540740,1762784056027,821.36,0.00037131,30]
[393540741,1762784056296,821.36,0.00037131,30]
[393540742,1762784056524,821.36,0.00037131,30]
[393540743,1762784056775,821.36,0.00037131,30]
[393540744,1762784057020,821.36,0.00037131,30]
[393540745,1762784057244,821.36,0.00037131,30]
[393540746,1762784057485,821.36,0.00037131,30]
[393540747,1762784057758,821.36,0.00037131,30]
[393540748,1762784058008,821.55659503,0.00037131,30]
[393540750,1762784064781,500.0,0.00037131,60]
[393540751,1762784065054,500.0,0.00037131,60]
[393540752,1762784065331,350.34194135,0.00037131,60]
[393540753,1762784084997,500.0,0.00037131,60]
[393540754,1762784085227,500.0,0.00037131,60]
[393540755,1762784085466,500.0,0.00037131,60]
[393540756,1762784085703,311.97281047,0.00037131,60]
[393540757,1762784092225,500.0,0.00037131,60]
[393540758,1762784092476,500.0,0.00037131,60]
[393540759,1762784092724,500.0,0.00037131,60]
[393540760,1762784098688,500.0,0.00037131,60]
[393540761,1762784099101,500.0,0.00037131,60]
[393540762,1762784100899,500.0,0.00037131,60]
[393540763,1762784101463,500.0,0.00037131,60]
[393540764,1762784101729,500.0,0.00037131,60]
[393540765,1762784102005,204.87299469,0.00037131,60]
[393540766,1762784110752,500.0,0.00037131,60]
[393540767,1762784110993,500.0,0.00037131,60]
[393540768,1762784111232,500.0,0.00037131,60]
[393540769,1762784111520,551.71575961,0.00037131,60]
[393540770,1762784112760,301.1433787,0.00037131,60]
[393540771,1762784113417,500.0,0.00037131,60]
[393540772,1762784113579,500.0,0.00037131,60]
[393540773,1762784113829,355.12303137,0.00037131,60]
[393540774,1762784115605,274.2910344,0.00037131,60]
[393540775,1762784119569,500.0,0.00037131,60]
[393540776,1762784119928,531.34622006,0.00037131,60]
[393540777,1762784122517,500.0,0.00037131,60]
[393540778,1762784122857,577.31739926,0.00037131,60]
[393540779,1762784129258,500.0,0.00037131,60]
[393540780,1762784129533,500.0,0.00037131,60]
[393540781,1762784129879,500.0,0.00037131,60]
[393540782,1762784130118,500.0,0.00037131,60]
[393540783,1762784130354,348.39730926,0.00037131,60]
[393540784,1762784132153,500.0,0.00037131,60]
[393540785,1762784132623,500.0,0.00037131,60]
[393540786,1762784132858,528.57397409,0.00037131,60]
[393540787,1762784137656,500.0,0.00037131,60]
[393540788,1762784137920,500.0,0.00037131,60]
[393540789,1762784138149,500.0,0.00037131,60]
[393540790,1762784138390,601.15428155,0.00037131,60]
[393540793,1762784152334,500.0,0.00037131,60]
[393540794,1762784152571,500.0,0.00037131,60]
[393540795,1762784152820,500.0,0.00037131,60]
[393540796,1762784153091,585.73016802,0.00037131,60]
[393540797,1762784156541,500.0,0.00037131,60]
[393540798,1762784156779,500.0,0.00037131,60]
[393540799,1762784157017,532.67003295,0.00037131,60]
[393540800,1762784169140,500.0,0.00037131,60]
[393540801,1762784169384,500.0,0.00037131,60]
[393540802,1762784169629,500.0,0.00037131,60]
[393540803,1762784169742,500.0,0.00037131,60]
[393540804,1762784169863,500.0,0.00037131,60]
[393540805,1762784169979,500.0,0.00037131,60]
[393540806,1762784170336,531.65268333,0.00037131,60]
[393540807,1762784170371,500.0,0.00037131,60]
[393540808,1762784170577,500.0,0.00037131,60]
[393540809,1762784170813,500.0,0.00037131,60]
[393540810,1762784171071,500.0,0.00037131,60]
[393540811,1762784171331,500.0,0.00037131,60]
[393540812,1762784171564,500.0,0.00037131,60]
[393540813,1762784171803,500.0,0.00037131,60]
[393540814,1762784172064,500.0,0.00037131,60]
[393540815,1762784172311,500.0,0.00037131,60]
[393540816,1762784172582,500.0,0.00037131,60]
[393540817,1762784172831,257.0937629,0.00037131,60]
[393540818,1762784174077,500.0,0.00037131,60]
[393540819,1762784174325,500.0,0.00037131,60]
[393540820,1762784174420,500.00000002,0.00037131,60]
[393540821,1762784174648,564.77294588,0.00037131,60]
[393540822,1762784174966,500.0,0.00037131,60]
[393540823,1762784175200,525.87412545,0.00037131,60]
[393540824,1762784180767,200.0,0.00037131,30]
[393540825,1762784184640,500.0,0.00037131,21]
[393540826,1762784184843,500.0,0.00037131,21]
[393540827,1762784185075,500.0,0.00037131,21]
[393540828,1762784185305,178.1376492,0.00037131,21]
[393540829,1762784189159,500.0,0.00037131,60]
[393540830,1762784189429,500.0,0.00037131,60]
[393540831,1762784189673,500.0,0.00037131,60]
[393540832,1762784189911,500.0,0.00037131,60]
[393540833,1762784190112,500.0,0.00037131,60]
[393540834,1762784190343,500.0,0.00037131,60]
[393540835,1762784190583,587.04340731,0.00037131,60]
[393540836,1762784190948,500.0,0.00037131,60]
[393540837,1762784191199,557.50102556,0.00037131,60]
[393540838,1762784197612,500.0,0.00037131,60]
[393540839,1762784197847,500.0,0.00037131,60]
[393540840,1762784198086,500.0,0.00037131,60]
[393540841,1762784198363,500.0,0.00037131,60]
[393540842,1762784198619,500.0,0.00037131,60]
[393540843,1762784198860,183.07638434,0.00037131,60]
[393540844,1762784200643,500.0,0.00037131,60]
[393540845,1762784200887,500.0,0.00037131,60]
[393540846,1762784201126,545.29107838,0.00037131,60]
[393540847,1762784211557,500.0,0.00037131,60]